bitfinex-derivatives/quotes_BTCF0:USTF0_20250402
["timestamp","ask_amount","ask_price","bid_price","bid_amount"]
[1743636707115,0.0082644,82748.0,82747.0,0.3835027]
[1743636707322,0.1917253,82770.0,82747.0,0.26262]
[1743636707520,0.0604267,82768.0,82764.0,0.1208593]
[1743636707723,0.25175037,82765.0,82764.0,0.1216193]
[1743636707923,0.37260817,82765.0,82764.0,0.2527193]
[1743636708121,0.3227019,82779.0,82765.0,0.0604289]
[1743636708421,0.3227019,82779.0,82778.0,0.1208388]
[1743636708619,0.3233419,82779.0,82778.0,0.49419072]
[1743636709328,0.07752346,82779.0,82778.0,1.11899072]
[1743636709519,0.07688346,82779.0,82778.0,1.11899072]
[1743636711021,0.19772086,82779.0,82778.0,2.62787406]
[1743636711325,0.19772086,82779.0,82778.0,0.98342214]
[1743636711627,0.22969735,82779.0,82778.0,0.62262214]
[1743636712016,0.35029735,82779.0,82778.0,0.62262214]
[1743636712217,0.22945995,82779.0,82778.0,0.62262214]
[1743636712919,0.22945995,82779.0,82778.0,0.74772214]
[1743636713120,0.10785995,82779.0,82778.0,0.74772214]
[1743636714023,0.03019,82786.0,82785.0,0.1208286]
[1743636714228,0.03019,82786.0,82785.0,0.4827086]
[1743636715030,0.17976658,82796.0,82795.0,0.120814]
[1743636715224,0.18076658,82796.0,82795.0,0.482614]
[1743636715628,0.18076658,82796.0,82795.0,1.982614]
[1743636715826,0.17976658,82796.0,82795.0,2.245914]
[1743636716016,8e-08,82796.0,82795.0,2.395914]
[1743636716525,8e-08,82796.0,82795.0,1.982614]
[1743636716930,0.12081268,82796.0,82795.0,0.615414]
[1743636717126,0.12081268,82796.0,82795.0,0.001]
[1743636717127,0.13469684,82796.0,82795.0,0.001]
[1743636717323,0.1208198,82791.0,82790.0,0.0604106]
[1743636717523,0.1214598,82791.0,82790.0,0.0614106]
[1743636717827,0.13426396,82791.0,82790.0,0.0614106]
[1743636718223,0.26326396,82791.0,82790.0,0.0614106]
[1743636718726,0.14244416,82791.0,82790.0,0.0614106]
[1743636718935,0.14180416,82791.0,82790.0,0.0614106]
[1743636719732,0.14280416,82791.0,82790.0,0.0614106]
[1743636719923,0.01380416,82791.0,82790.0,0.0614106]
[1743636720121,0.01280416,82791.0,82790.0,0.0614106]
[1743636720323,0.01380416,82791.0,82790.0,0.0614106]
[1743636720525,0.02174414,82791.0,82790.0,0.0614106]
[1743636720823,0.14714414,82791.0,82790.0,0.0614106]
[1743636722634,0.26796394,82791.0,82790.0,0.0614106]
[1743636723126,0.39256394,82791.0,82790.0,0.0614106]
[1743636724424,0.39256394,82791.0,82790.0,0.1855106]
[1743636724720,0.39256394,82791.0,82790.0,0.001]
[1743636725025,0.39256394,82791.0,82778.0,0.00888334]
[1743636725026,0.1208359,82780.0,82779.0,0.1316]
[1743636725229,0.0604144,82785.0,82781.0,0.0604172]
[1743636725522,0.1822468,82785.0,82784.0,0.1208271]
[1743636725729,0.001,82785.0,82784.0,0.1218271]
[1743636725928,0.14574414,82785.0,82784.0,0.2534271]
[1743636726130,0.14474414,82785.0,82784.0,0.1326]
[1743636726330,0.26665274,82785.0,82784.0,0.1326]
[1743636726938,0.14582414,82785.0,82784.0,0.2534301]
[1743636727231,0.02074414,82785.0,82784.0,0.2534301]
[1743636727435,0.02074414,82785.0,82784.0,0.3760301]
[1743636728534,0.02074414,82785.0,82784.0,1.8760301]
[1743636729029,0.1208043,82802.0,82797.0,0.1208111]
[1743636729224,0.03083,82798.0,82797.0,0.4826111]
[1743636729429,0.00064,82798.0,82797.0,0.4826111]
[1743636729638,0.00064,82798.0,82797.0,0.4878]
[1743636729639,0.1208096,82798.0,82797.0,0.4878]
[1743636729833,0.1218096,82798.0,82797.0,0.4878]
[1743636730134,0.2437096,82798.0,82797.0,0.001]
[1743636731240,0.1208228,82789.0,82788.0,0.1208238]
[1743636731537,0.001,82789.0,82788.0,0.1218238]
[1743636731733,0.1332,82790.0,82789.0,0.1208228]
[1743636731934,0.1342,82790.0,82789.0,0.7351228]
[1743636732130,0.1208174,82793.0,82789.0,0.7351228]
[1743636732131,0.1,82800.0,82799.0,0.1208082]
[1743636732337,0.101,82800.0,82799.0,0.4826082]
[1743636732640,0.10108,82800.0,82799.0,0.6047082]
[1743636732837,0.10108,82800.0,82799.0,2.1047082]
[1743636733038,0.1,82800.0,82799.0,2.1047082]
[1743636733236,0.0227508,82800.0,82799.0,2.2351082]
[1743636733444,0.0227508,82800.0,82799.0,2.3851082]
[1743636733741,0.0227508,82800.0,82799.0,2.2351082]
[1743636735238,0.00011986,82804.0,82799.0,2.3851082]
[1743636735440,0.0607783,82835.0,82830.0,0.120763]
[1743636735441,0.25076477,82831.0,82830.0,0.120763]
[1743636735634,0.25076477,82831.0,82830.0,0.843403]
[1743636735635,0.25148477,82831.0,82830.0,0.843403]
[1743636736139,0.25148477,82831.0,82830.0,2.35520836]
[1743636736332,0.37152627,82831.0,82830.0,1.99994536]
[1743636736532,0.37152627,82831.0,82830.0,0.00104]
[1743636736533,0.73304627,82831.0,82830.0,0.00104]
[1743636736742,0.1207732,82823.0,82822.0,0.00018119]
[1743636736932,0.1214132,82823.0,82822.0,0.00018119]
[1743636737132,0.1214132,82823.0,82822.0,0.12095579]
[1743636737332,0.1214132,82823.0,82822.0,0.12195579]
[1743636737839,0.1214132,82823.0,82822.0,0.1311409]
[1743636738035,0.00064,82823.0,82822.0,0.4919409]
[1743636738236,0.00064,82823.0,82822.0,0.6222409]
[1743636738745,0.00064,82823.0,82822.0,2.13400059]
[1743636738931,0.1316,82824.0,82823.0,0.1207732]
[1743636739243,0.1316,82824.0,82823.0,0.1217732]
[1743636739438,0.13264001,82824.0,82823.0,0.2520732]
[1743636739834,0.1316,82824.0,82823.0,0.2520732]
[1743636740236,0.13232,82824.0,82823.0,0.1217732]
[1743636740534,0.2530917,82824.0,82823.0,0.1217732]
[1743636740731,0.3816917,82824.0,82823.0,0.1217732]
[1743636743740,0.3816917,82824.0,82823.0,0.001]
[1743636743932,0.1208038,82802.0,82801.0,0.3608]
[1743636744136,0.1215638,82802.0,82801.0,0.3616]
[1743636744345,0.1215638,82802.0,82801.0,0.4824053]
[1743636744746,0.12921046,82802.0,82801.0,0.4824053]
[1743636745041,0.25240666,82802.0,82801.0,0.49131773]
[1743636745247,0.13082666,82802.0,82801.0,0.49131773]
[1743636745545,0.1225,82802.0,82801.0,0.49131773]
[1743636746046,0.1225,82802.0,82801.0,0.74981773]
[1743636747631,0.0603956,82812.0,82811.0,0.1207896]
[1743636747841,0.1811898,82812.0,82811.0,0.4822696]
[1743636748037,0.1818698,82812.0,82811.0,0.4822696]
[1743636748239,0.1811898,82812.0,82811.0,0.4822696]
[1743636749637,0.1819898,82812.0,82811.0,0.00068]
[1743636749949,0.1208009,82804.0,82803.0,0.3608]
[1743636750132,0.1216009,82804.0,82803.0,0.3608]
[1743636750338,0.12919197,82804.0,82803.0,0.36148]
[1743636750540,0.00839107,82804.0,82803.0,0.36148]
[1743636750741,0.1448929,82828.0,82819.0,0.120779]
[1743636750938,0.18037645,82820.0,82819.0,0.121699]
[1743636751143,0.18037645,82820.0,82819.0,0.00092]
[1743636751144,0.30115395,82820.0,82819.0,0.00092]
[1743636751633,0.1207892,82812.0,82811.0,0.00018119]
[1743636751838,0.1214292,82812.0,82811.0,0.00110119]
[1743636752733,0.3690292,82812.0,82811.0,0.00110119]
[1743636753140,0.9298292,82812.0,82811.0,1e-08]
[1743636753446,0.1208184,82792.0,82791.0,0.00909024]
[1743636753652,0.1208374,82779.0,82773.0,0.3608]
[1743636753949,0.1214774,82779.0,82778.0,0.00112322]
[1743636754654,0.3690774,82779.0,82778.0,0.00112322]
[1743636756048,0.00064,82779.0,82778.0,0.0101971]
[1743636756354,0.1208083,82799.0,82798.0,0.1208084]
[1743636756646,0.00064,82799.0,82798.0,2.1024152]
[1743636756850,0.2529071,82800.0,82799.0,0.1208082]
[1743636757043,0.2529071,82800.0,82799.0,0.1216482]
[1743636757246,0.25076477,82808.0,82807.0,0.1207965]
[1743636757446,0.25172477,82808.0,82807.0,0.36176]
[1743636757645,0.37251977,82808.0,82807.0,0.4825565]
[1743636757846,0.37251977,82808.0,82807.0,0.36176]
[1743636758047,0.50461977,82808.0,82807.0,0.4825565]
[1743636758455,0.50461977,82808.0,82807.0,0.36176]
[1743636758648,0.50461977,82808.0,82807.0,0.4825565]
[1743636759157,0.38382477,82808.0,82807.0,0.4825565]
[1743636759342,0.25172477,82808.0,82807.0,0.4825565]
[1743636759546,0.37251977,82808.0,82807.0,0.6083565]
[1743636759957,0.25172477,82808.0,82807.0,0.6083565]
[1743636760450,0.121755,82808.0,82807.0,0.36176]
[1743636760841,0.386055,82808.0,82807.0,0.00096]
[1743636761240,0.386055,82808.0,82804.0,0.1207996]
[1743636761241,0.1207994,82805.0,82804.0,0.1207996]
[1743636761450,0.1216394,82805.0,82804.0,0.1216396]
[1743636761648,0.2447394,82805.0,82804.0,0.1216396]
[1743636761860,0.2447394,82805.0,82804.0,0.00084]
[1743636762052,0.3672394,82805.0,82804.0,0.00084]
[1743636766047,0.3672394,82805.0,82804.0,0.1216409]
[1743636766257,0.00084,82805.0,82804.0,0.1216409]
[1743636766457,0.00084,82805.0,82804.0,0.12704]
[1743636766651,0.1216394,82805.0,82804.0,0.12704]
[1743636766853,0.1216394,82805.0,82804.0,0.00084]
[1743636767158,0.2498394,82805.0,82804.0,0.00084]
[1743636767362,0.3708394,82805.0,82804.0,0.00084]
[1743636768061,0.2498394,82805.0,82804.0,0.00084]
[1743636769350,0.00084,82805.0,82804.0,0.00084]
[1743636769555,0.0905769,82809.0,82808.0,0.120795]
[1743636769860,0.0914969,82809.0,82808.0,0.36176]
[1743636770454,0.3460969,82809.0,82808.0,0.36176]
[1743636771758,0.3460969,82809.0,82808.0,0.00096]
[1743636772352,0.45489323,82809.0,82808.0,0.00096]
[1743636772567,0.45489323,82809.0,82794.0,0.1311]
[1743636772568,0.0603996,82806.0,82794.0,0.1311]
[1743636772755,0.120814,82795.0,82794.0,0.00957082]
[1743636772951,0.121574,82795.0,82794.0,0.00064]
[1743636773146,0.120814,82795.0,82794.0,0.1214555]
[1743636773350,0.121494,82795.0,82794.0,0.1214555]
[1743636774651,0.00068,82795.0,82794.0,0.1214555]
[1743636774852,0.0604062,82797.0,82796.0,0.1208126]
[1743636775058,0.00068,82797.0,82796.0,0.4822526]
[1743636775252,0.19937353,82809.0,82802.0,0.1208008]
[1743636775253,0.0604012,82803.0,82802.0,0.1208008]
[1743636775448,0.1818873,82803.0,82802.0,0.4822408]
[1743636775860,0.1818873,82803.0,82802.0,0.36144]
[1743636776462,0.1818873,82803.0,82802.0,0.4822438]
[1743636776663,0.1818873,82803.0,82802.0,0.6055438]
[1743636778459,0.39752127,82803.0,82802.0,0.6055438]
[1743636778867,0.39752127,82803.0,82802.0,0.48474]
[1743636779469,0.39752127,82803.0,82802.0,0.6055438]
[1743636781061,0.39752127,82803.0,82802.0,0.48474]
[1743636781771,0.1818873,82803.0,82802.0,0.48474]
[1743636782761,0.1818873,82803.0,82802.0,0.12394]
[1743636783157,0.00068,82803.0,82802.0,0.6055438]
[1743636783370,0.1208023,82803.0,82802.0,0.6055438]
[1743636784167,0.1208023,82803.0,82802.0,0.48474]
[1743636784359,0.2543823,82803.0,82802.0,0.48474]
[1743636785377,0.3849823,82803.0,82802.0,0.48474]
[1743636786573,0.2543823,82803.0,82802.0,0.48474]
[1743636787076,0.1214823,82803.0,82802.0,0.48474]
[1743636787374,0.1214823,82803.0,82802.0,0.6055438]
[1743636788083,0.1214823,82803.0,82802.0,0.7352438]
[1743636788572,0.21568811,82805.0,82804.0,0.1208009]
[1743636788779,0.25076477,82818.0,82811.0,0.1207907]
[1743636788960,0.25076477,82818.0,82811.0,0.4826307]
[1743636788961,0.04938,82812.0,82811.0,0.4826307]
[1743636789166,0.04938,82812.0,82811.0,1.9826307]
[1743636789475,0.0483,82812.0,82811.0,1.9826307]
[1743636789877,0.25076477,82818.0,82817.0,0.1207819]
[1743636790066,0.25076477,82818.0,82817.0,0.4825819]
[1743636790261,0.37154527,82818.0,82817.0,0.4825819]
[1743636790466,0.37262527,82818.0,82817.0,0.3618]
[1743636790665,0.37154527,82818.0,82817.0,0.3618]
[1743636790869,0.37154527,82818.0,82817.0,0.4825819]
[1743636791062,0.37154527,82818.0,82817.0,0.1212449]
[1743636791381,0.37154527,82818.0,82809.0,0.00018119]
[1743636791382,0.1207921,82810.0,82809.0,0.36098119]
[1743636791678,0.1214721,82810.0,82809.0,0.36166119]
[1743636791972,0.1214721,82810.0,82809.0,0.00086119]
[1743636792368,0.2523721,82810.0,82809.0,0.00086119]
[1743636792768,0.2523721,82810.0,82809.0,0.00018119]
[1743636793169,0.2523721,82810.0,82809.0,0.00090119]
[1743636793370,0.1214721,82810.0,82809.0,0.00090119]
[1743636793579,0.1214721,82810.0,82809.0,0.12169479]
[1743636794579,0.1214721,82810.0,82809.0,0.25109479]
[1743636798879,0.1214721,82810.0,82809.0,0.61189479]
[1743636800084,0.1214721,82810.0,82809.0,0.73549479]
[1743636800776,0.1214721,82810.0,82809.0,0.61470119]
[1743636801479,0.02986,82812.0,82811.0,0.1207907]
[1743636801670,0.00088001,82812.0,82811.0,0.1216707]
[1743636801867,0.060386,82824.0,82818.0,0.1207805]
[1743636802070,0.121179,82819.0,82818.0,0.7393605]
[1743636802984,0.121179,82819.0,82818.0,0.61858]
[1743636803285,0.25115901,82819.0,82818.0,0.61858]
[1743636803483,0.250279,82819.0,82818.0,0.61858]
[1743636803684,0.121179,82819.0,82818.0,0.61858]
[1743636803876,0.121179,82819.0,82809.0,0.36098119]
[1743636803877,0.1207921,82810.0,82809.0,0.36098119]
[1743636804183,0.1208096,82798.0,82797.0,0.3608]
[1743636804477,0.00064,82798.0,82797.0,0.4822911]
[1743636804681,0.1207974,82807.0,82806.0,0.0603983]
[1743636804884,0.1215174,82807.0,82806.0,0.4211983]
[1743636805184,0.1215174,82807.0,82806.0,0.4218383]
[1743636805573,0.00072,82807.0,82806.0,0.4218383]
[1743636805871,0.1235,82814.0,82808.0,0.1811889]
[1743636805872,0.1207937,82809.0,82808.0,0.1811889]
[1743636806072,0.1215137,82809.0,82808.0,0.1819089]
[1743636806678,0.00072,82809.0,82808.0,0.1819089]
[1743636807481,0.00018119,82815.0,82814.0,0.1207863]
[1743636807679,0.00018119,82815.0,82814.0,0.4822263]
[1743636808075,0.00018119,82815.0,82814.0,0.7385263]
[1743636808271,0.12096599,82815.0,82814.0,0.7385263]
[1743636809571,0.0004,82819.0,82814.0,0.7385263]
[1743636809572,0.0004,82819.0,82818.0,0.1207805]
[1743636809776,0.0004,82819.0,82818.0,0.1214205]
[1743636812686,0.31113927,82840.0,82830.0,0.0603807]
[1743636812991,0.1217957,82835.0,82834.0,0.1207571]
[1743636813175,0.1217957,82835.0,82834.0,0.1213971]
[1743636813788,0.00104,82835.0,82834.0,0.1213971]
[1743636813993,0.1217957,82835.0,82834.0,0.4821971]
[1743636815890,0.3644957,82835.0,82834.0,0.7242971]
[1743636816682,0.24374,82835.0,82834.0,0.7242971]
[1743636817691,0.00104,82835.0,82834.0,0.7242971]
[1743636817891,0.0004,82835.0,82834.0,0.7242971]
[1743636820192,0.0004,82835.0,82834.0,1.0850971]
[1743636820394,0.0004,82835.0,82834.0,1.2164971]
[1743636820796,0.0004,82835.0,82834.0,2.7164971]
[1743636823185,0.00010119,82835.0,82834.0,2.7164971]
[1743636825796,0.12085689,82835.0,82834.0,0.7242971]
[1743636825989,0.12149689,82835.0,82834.0,0.7242971]
[1743636826293,0.00074119,82835.0,82834.0,0.7242971]
[1743636826487,0.00010119,82835.0,82834.0,0.7242971]
[1743636828388,0.12085689,82835.0,82834.0,0.7242971]
[1743636828793,0.00010119,82835.0,82834.0,0.7242971]
[1743636831783,0.12085689,82835.0,82834.0,0.7242971]
[1743636831984,0.00010119,82835.0,82834.0,0.7242971]
[1743636832890,0.12085689,82835.0,82834.0,0.00064]
[1743636833094,0.12085689,82835.0,82824.0,0.00018119]
[1743636833095,0.1207703,82825.0,82824.0,0.00018119]
[1743636833299,0.1215703,82825.0,82824.0,0.00018119]
[1743636833484,0.3782703,82825.0,82824.0,0.00018119]
[1743636834394,0.0008,82825.0,82824.0,0.12095289]
[1743636834698,0.0008,82825.0,82824.0,0.60429289]
[1743636834992,0.1275,82828.0,82827.0,0.1207673]
[1743636835197,0.0008,82828.0,82827.0,0.1214073]
[1743636835490,0.00010119,82835.0,82834.0,0.1207571]
[1743636835697,0.00010119,82835.0,82834.0,0.4821971]
[1743636835889,0.00078119,82835.0,82834.0,2.2335971]
[1743636836090,0.00010119,82835.0,82834.0,2.2335971]
[1743636836999,9e-08,82835.0,82834.0,2.24973026]
[1743636837195,9e-08,82835.0,82834.0,2.24973502]
[1743636840599,9e-08,82835.0,82834.0,2.2496265]
[1743636840897,9e-08,82835.0,82834.0,2.2335971]
[1743636841101,0.12075579,82835.0,82834.0,0.6040971]
[1743636841399,0.12139579,82835.0,82834.0,0.6040971]
[1743636841603,0.36759579,82835.0,82834.0,0.6040971]
[1743636842800,0.00064009,82835.0,82834.0,0.6040971]
[1743636843104,9e-08,82835.0,82834.0,0.7322971]
[1743636844096,0.00064009,82835.0,82834.0,0.7322971]
[1743636844297,0.00064009,82835.0,82834.0,2.2322971]
[1743636844505,9e-08,82835.0,82834.0,2.2322971]
[1743636850591,0.0004,82851.0,82850.0,0.1207338]
[1743636850791,0.1211094,82867.0,82866.0,0.1207105]
[1743636851006,0.1207163,82862.0,82861.0,0.0603588]
[1743636851298,0.1207222,82858.0,82857.0,0.5418815]
[1743636851901,0.1207222,82858.0,82857.0,2.0418815]
[1743636852202,0.1207222,82858.0,82857.0,2.0425215]
[1743636852400,0.4969222,82858.0,82857.0,0.5418815]
[1743636852598,0.4969222,82858.0,82857.0,0.1810815]
[1743636853198,0.1207324,82851.0,82850.0,0.3608]
[1743636853518,0.120744,82844.0,82843.0,0.0603715]
[1743636853814,0.1207659,82828.0,82827.0,0.21732432]
[1743636854001,0.1207907,82811.0,82804.0,0.3608]
[1743636854192,0.1207907,82811.0,82807.0,0.1207956]
[1743636854392,0.1207907,82811.0,82804.0,0.3608]
[1743636854695,0.1207907,82811.0,82810.0,0.48205001]
[1743636855096,0.3732907,82811.0,82810.0,0.48205001]
[1743636857208,0.3739307,82811.0,82810.0,0.48269001]
[1743636858614,0.3739307,82811.0,82810.0,0.01006017]
[1743636859609,0.3739307,82811.0,82810.0,0.13085227]
[1743636859805,0.00064,82811.0,82810.0,0.13085227]
[1743636860013,0.21564152,82820.0,82818.0,0.1207805]
[1743636860314,0.00082071,82819.0,82818.0,0.4822205]
[1743636860511,0.37239971,82819.0,82818.0,1.9822205]
[1743636861702,0.37239971,82819.0,82818.0,1.86144]
[1743636862014,0.37239971,82819.0,82818.0,0.00064]
[1743636862207,0.1207907,82811.0,82810.0,0.00942017]
[1743636862405,0.1214307,82811.0,82810.0,0.00124303]
[1743636863010,0.3792307,82811.0,82810.0,0.00124303]
[1743636863417,0.3792307,82811.0,82810.0,0.00048303]
[1743636863614,0.3792307,82811.0,82810.0,0.00112303]
[1743636863910,0.0604004,82805.0,82783.0,0.3608]
[1743636864110,0.120814,82795.0,82790.0,0.1208207]
[1743636864311,0.121454,82795.0,82792.0,0.1208178]
[1743636864611,0.121454,82795.0,82794.0,0.00112312]
[1743636865013,0.362454,82795.0,82794.0,0.00112312]
[1743636865617,0.1208271,82786.0,82785.0,0.1258]
[1743636865816,0.1214671,82786.0,82785.0,0.12644]
[1743636866118,0.1214671,82786.0,82785.0,0.2472686]
[1743636866622,0.2415671,82786.0,82785.0,0.2472686]
[1743636866825,0.3624671,82786.0,82785.0,0.2472686]
[1743636867227,0.00064,82786.0,82785.0,0.2472686]
[1743636867526,0.1208151,82795.0,82793.0,0.1208169]
[1743636867723,0.12990119,82794.0,82793.0,0.4823369]
[1743636868025,0.37601669,82794.0,82793.0,0.36152]
[1743636869028,0.0604136,82786.0,82780.0,0.3608]
[1743636869319,0.1208344,82781.0,82780.0,0.00068]
[1743636869519,0.1208374,82779.0,82778.0,0.00048322]
[1743636869716,0.1216774,82779.0,82778.0,0.00048322]
[1743636870122,0.3759774,82779.0,82778.0,0.00048322]
[1743636872127,0.0604238,82773.0,82766.0,0.3608]
[1743636872333,0.1208549,82767.0,82766.0,0.00088]
[1743636872531,0.1208607,82763.0,82762.0,0.12134481]
[1743636872737,0.1217007,82763.0,82762.0,0.12198481]
[1743636873230,0.1217007,82763.0,82762.0,0.24308481]
[1743636873638,0.1217007,82763.0,82762.0,0.12222331]
[1743636873832,0.1208724,82755.0,82754.0,0.00018119]
[1743636874038,0.1208841,82747.0,82738.0,0.1236]
[1743636874229,0.0604446,82744.0,82730.0,0.0004835]
[1743636874538,0.0604446,82744.0,82732.0,0.04564504]
[1743636874539,0.1209045,82733.0,82732.0,0.04564504]
[1743636874738,0.1221845,82733.0,82732.0,0.04564504]
[1743636875425,0.3744845,82733.0,82732.0,0.04564504]
[1743636876626,0.3744845,82733.0,82732.0,0.16594504]
[1743636876832,0.00128,82733.0,82732.0,0.28685104]
[1743636877033,0.2417905,82740.0,82739.0,0.1208943]
[1743636877229,0.50309051,82740.0,82739.0,0.1215343]
[1743636877626,0.50309051,82740.0,82739.0,1.7430343]
[1743636878028,0.50309051,82740.0,82739.0,1.8679343]
[1743636878436,0.50309051,82740.0,82739.0,1.74704]
[1743636878938,0.50309051,82740.0,82739.0,1.62214]
[1743636880331,0.1209045,82733.0,82732.0,0.04500504]
[1743636880533,0.12230451,82733.0,82732.0,0.04568504]
[1743636881142,0.12230451,82733.0,82732.0,0.17538504]
[1743636881532,0.37800451,82733.0,82732.0,0.17538504]
[1743636881941,0.12230451,82733.0,82732.0,0.17538504]
[1743636882535,0.12230451,82733.0,82732.0,0.30818504]
[1743636882729,0.1209045,82733.0,82732.0,0.30818504]
[1743636882933,0.12230451,82733.0,82732.0,1.80818504]
[1743636883134,0.1209045,82733.0,82732.0,1.80818504]
[1743636885437,0.1209045,82733.0,82732.0,0.30818504]
[1743636885643,0.12230451,82733.0,82732.0,0.30818504]
[1743636886239,0.1209045,82733.0,82732.0,0.30818504]
[1743636886437,0.1209045,82733.0,82732.0,0.43338504]
[1743636886833,0.1223845,82733.0,82732.0,0.43338504]
[1743636887449,0.1209045,82733.0,82732.0,0.43338504]
[1743636887849,0.3608,82748.0,82732.0,0.43338504]
[1743636888033,0.4176,82772.0,82744.0,0.1208885]
[1743636888034,0.22707893,82760.0,82744.0,0.1208885]
[1743636888234,0.120886,82746.0,82744.0,0.49943116]
[1743636888444,0.120886,82746.0,82745.0,0.120887]
[1743636888634,0.120886,82746.0,82745.0,1.877827]
[1743636889246,0.120886,82746.0,82745.0,1.89375821]
[1743636889446,0.120886,82746.0,82745.0,1.91083159]
[1743636889851,0.120886,82746.0,82745.0,1.89490038]
[1743636890040,0.1208845,82747.0,82746.0,0.1813246]
[1743636890240,0.1208845,82747.0,82746.0,0.60092833]
[1743636890943,0.06061861,82754.0,82746.0,0.60092833]
[1743636890944,0.06061861,82754.0,82746.0,0.49007739]
[1743636891144,0.1208765,82753.0,82752.0,0.1208753]
[1743636891347,0.00018131,82754.0,82753.0,0.1208753]
[1743636891552,0.1812969,82761.0,82760.0,0.1208639]
[1743636891735,0.1812969,82761.0,82760.0,0.49873728]
[1743636891940,0.13138618,82779.0,82760.0,0.52156373]
[1743636891941,0.0604272,82768.0,82760.0,0.52156373]
[1743636892240,0.0604259,82770.0,82767.0,0.421226]
[1743636892551,0.120852,82769.0,82768.0,0.16623337]
[1743636893140,0.120852,82769.0,82768.0,0.17529279]
[1743636893539,0.120852,82769.0,82768.0,0.19128314]
[1743636893745,0.120852,82769.0,82768.0,0.07042974]
[1743636893944,0.120852,82769.0,82768.0,0.19128314]
[1743636894349,0.120852,82769.0,82768.0,0.2172355]
[1743636894949,0.120852,82769.0,82768.0,0.16327675]
[1743636895542,0.1212499,82771.0,82770.0,0.1208505]
[1743636895746,0.1212499,82771.0,82770.0,0.13822408]
[1743636896341,0.1212499,82771.0,82770.0,0.01599035]
[1743636896745,0.1212499,82771.0,82770.0,0.13684085]
[1743636896951,0.12264991,82771.0,82770.0,0.13748085]
[1743636897349,0.00180001,82771.0,82770.0,0.13748085]
[1743636897550,0.00180001,82771.0,82770.0,0.1214905]
[1743636897745,0.0004,82771.0,82770.0,0.1214905]
[1743636897944,0.00188,82771.0,82770.0,0.13809019]
[1743636898156,0.0004,82787.0,82776.0,0.1208417]
[1743636898457,0.58811015,82830.0,82802.0,0.1208038]
[1743636898763,0.1257,82829.0,82818.0,0.1207805]
[1743636898957,0.1207687,82827.0,82818.0,0.4822605]
[1743636899155,0.32241185,82846.0,82818.0,0.49111572]
[1743636899356,0.32241185,82846.0,82838.0,0.1207513]
[1743636899561,0.32241185,82846.0,82845.0,0.1207411]
[1743636899767,0.32309185,82846.0,82845.0,1.9821811]
[1743636899962,0.44383145,82846.0,82845.0,1.6213811]
[1743636900165,0.00068,82846.0,82845.0,1.6213811]
[1743636900463,0.12091878,82847.0,82846.0,0.1207396]
[1743636900759,0.12091878,82847.0,82846.0,0.1214596]
[1743636901063,0.0603736,82841.0,82830.0,0.01021279]
[1743636901259,0.3608,82845.0,82829.0,0.3608]
[1743636901453,0.1207513,82838.0,82830.0,1.5]
[1743636901655,0.12163131,82838.0,82830.0,0.01002652]
[1743636902159,0.1207615,82831.0,82830.0,0.01002652]
[1743636902363,0.120779,82819.0,82818.0,0.36965522]
[1743636902558,0.12165901,82819.0,82818.0,0.37029522]
[1743636902865,0.12165901,82819.0,82818.0,0.00064]
[1743636903167,0.1207907,82811.0,82810.0,0.00048303]
[1743636903357,0.12167071,82811.0,82810.0,0.0013041]
[1743636904159,0.24497071,82811.0,82810.0,0.0013041]
[1743636904559,0.24497071,82811.0,82810.0,0.1220962]
[1743636904858,0.24497071,82811.0,82810.0,0.0013041]
[1743636905164,0.24497071,82811.0,82810.0,0.0006641]
[1743636905362,0.120814,82795.0,82794.0,2e-08]
[1743636905557,0.1208315,82783.0,82782.0,0.23142968]
[1743636905764,0.4827115,82783.0,82782.0,0.23206968]
[1743636905961,0.1208549,82767.0,82748.0,0.3608]
[1743636906263,0.4816549,82767.0,82766.0,0.50183752]
[1743636906456,0.1208607,82763.0,82758.0,0.66200167]
[1743636906651,0.1223007,82763.0,82762.0,0.00120331]
[1743636907159,0.1223007,82763.0,82758.0,0.00018118]
[1743636907160,0.1208666,82759.0,82758.0,0.00018118]
[1743636907362,0.1208841,82747.0,82746.0,0.0004834]
[1743636907564,0.1223241,82747.0,82746.0,0.0012034]
[1743636907861,0.1223241,82747.0,82746.0,0.121369]
[1743636908068,0.1223241,82747.0,82746.0,0.122009]
[1743636908565,0.1223241,82747.0,82746.0,0.0011234]
[1743636908765,0.1223241,82747.0,82746.0,0.0004834]
[1743636909154,0.1223241,82747.0,82746.0,0.0012034]
[1743636909362,0.2426241,82747.0,82746.0,0.0012034]
[1743636909563,0.2426241,82747.0,82746.0,0.0004834]
[1743636909761,0.0604451,82743.0,82739.0,0.1253]
[1743636909952,0.0619251,82743.0,82740.0,0.1208914]
[1743636910158,0.1208943,82741.0,82740.0,0.2417849]
[1743636910359,0.0604436,82745.0,82744.0,0.1208885]
[1743636910567,0.0619636,82745.0,82744.0,0.1208885]
[1743636911455,0.1208885,82744.0,82743.0,0.1316]
[1743636911854,0.2531285,82744.0,82743.0,0.1316]
[1743636912258,0.2531285,82744.0,82743.0,0.2524899]
[1743636912458,0.1223285,82744.0,82743.0,0.2524899]
[1743636912663,0.1223285,82744.0,82743.0,0.3759899]
[1743636914059,0.22898326,82744.0,82743.0,0.3759899]
[1743636915267,0.22898326,82744.0,82743.0,0.2551]
[1743636915862,0.1208958,82739.0,82738.0,0.00018118]
[1743636916055,0.4832158,82739.0,82738.0,0.00018118]
[1743636916368,0.1209045,82733.0,82732.0,0.16960504]
[1743636916560,0.1223445,82733.0,82732.0,0.16960504]
[1743636917362,0.2426445,82733.0,82732.0,0.16960504]
[1743636918472,0.2426445,82733.0,82732.0,0.04500504]
[1743636918967,0.0604562,82728.0,82724.0,0.0001813]
[1743636919168,0.0604562,82728.0,82717.0,0.3608]
[1743636919169,0.1209265,82718.0,82717.0,0.3608]
[1743636919555,0.1209309,82715.0,82714.0,0.00048359]
[1743636919755,0.1209382,82710.0,82709.0,0.1226]
[1743636920163,0.3608,82715.0,82709.0,0.1226]
[1743636920164,0.1209259,82719.0,82718.0,0.1209235]
[1743636920463,0.1209323,82715.0,82714.0,0.1209309]
[1743636920665,0.1209323,82715.0,82714.0,0.2435309]
[1743636922874,0.22776885,82715.0,82714.0,0.2435309]
[1743636925062,0.22920885,82715.0,82714.0,0.2441709]
[1743636925765,0.22920885,82715.0,82714.0,0.12324]
[1743636925966,0.1223723,82715.0,82714.0,0.12324]
[1743636927579,0.2492723,82715.0,82714.0,0.12324]
[1743636930269,0.3695723,82715.0,82714.0,0.12324]
[1743636930474,0.1209367,82711.0,82710.0,0.1303]
[1743636930674,0.1225767,82711.0,82710.0,0.1303]
[1743636930877,0.2428767,82711.0,82710.0,0.1303]
[1743636932175,0.1209484,82703.0,82702.0,0.1254]
[1743636932377,0.12266841,82703.0,82702.0,0.1254]